[Event "Mitropa Online Cup Open 2021"]
[Site "Hybrid"]
[Date "2021.05.04"]
[Round "6.2"]
[White "Nagy, Gabor"]
[Black "Finek, Vaclav"]
[Result "1-0"]
[ECO "A11"]
[WhiteElo "2511"]
[BlackElo "2361"]
[Annotator "ChessBase"]
[PlyCount "115"]
[EventDate "2021.05.04"]
[EventType "team-tourn"]
[EventCountry "NET"]
[SourceTitle "playchess.com"]
[Source "ChessBase"]
[SourceQuality "1"]
[WhiteTeam "Hungary"]
[BlackTeam "Czech Republic"]
[WhiteTeamCountry "HUN"]
[BlackTeamCountry "CZE"]
[TimeControl "40/5400+30:1800+30"]

1. d4 {[%emt 0:00:00]} Nf6 {[%emt 0:00:14]} 2. c4 {[%emt 0:00:09]} g6 {[%emt 0:00:09]} 3. g3 {[%emt 0:00:11]} c6 {[%emt 0:00:12]} 4. Bg2 {[%emt 0:00:17]} d5 {[%emt 0:00:07]} 5. Qa4 {[%emt 0:00:18]} Bg7 {[%emt 0:00:26]} 6. cxd5 {[%emt 0:00:17]} Nxd5 {[%emt 0:01:12]} 7. Nf3 {[%emt 0:00:17]} O-O {[%emt 0:00:17]} 8. O-O {[%emt 0:00:30]} Nb6 {[%emt 0:07:53]} 9. Qc2 {[%emt 0:03:00]} Bg4 {[%emt 0:03:20]} 10. Rd1 {[%emt 0:01:26]} N8d7 {[%emt 0:01:48]} 11. Nc3 {[%emt 0:02:27]} Re8 {[%emt 0:03:00]} 12. h3 {[%emt 0:03:57]} Bxf3 {[%emt 0:00:33]} 13. Bxf3 {[%emt 0:00:08]} Qc7 {[%emt 0:07:33]} 14. Bg2 {[%emt 0:03:16]} e5 {[%emt 0:07:37]} 15. dxe5 {[%emt 0:01:12]} Nxe5 {[%emt 0:00:48]} 16. Ne4 {[%emt 0:04:46]} h6 {[%emt 0:03:57]} 17. Be3 {[%emt 0:10:26]} Rad8 {[%emt 0:04:27]} 18. Bc5 {[%emt 0:01:04]} Nd5 {[%emt 0:15:22]} 19. Qb3 {[%emt 0:04:54]} b6 {[%emt 0:06:59]} 20. Bd6 {[%emt 0:01:25]} Qb7 {[%emt 0:00:57]} 21. Rac1 {[%emt 0:01:55]} Qa8 {[%emt 0:02:36]} 22. Ba3 {[%emt 0:01:50]} a5 {[%emt 0:11:05]} 23. Nd6 {[%emt 0:02:46]} a4 {[%emt 0:00:31]} 24. Qc2 {[%emt 0:00:13]} b5 {[%emt 0:03:17]} 25. Nxe8 {[%emt 0:01:24]} Rxe8 {[%emt 0:00:09]} 26. Bc5 {[%emt 0:00:55]} Nc4 {[%emt 0:01:14]} 27. b3 {[%emt 0:01:58]} axb3 {[%emt 0:01:24]} 28. axb3 {[%emt 0:00:10]} Ne5 {[%emt 0:02:28]} 29. Bd4 {[%emt 0:01:17]} Re6 {[%emt 0:02:23]} 30. Bxd5 {[%emt 0:00:50]} cxd5 {[%emt 0:00:09]} 31. Qc8+ {[%emt 0:00:12]} Qxc8 {[%emt 0:00:03]} 32. Rxc8+ {[%emt 0:00:07]} Kh7 {[%emt 0:00:11]} 33. Bxe5 {[%emt 0:00:11]} Rxe5 {[%emt 0:00:11]} 34. e3 {[%emt 0:00:07]} Rh5 {[%emt 0:05:35]} 35. Rc5 {[%emt 0:00:50]} b4 {[%emt 0:00:15]} 36. Kg2 {[%emt 0:00:24]} Re5 {[%emt 0:01:32]} 37. Rcxd5 {[%emt 0:00:07]} Re6 {[%emt 0:00:31]} 38. Rd7 {[%emt 0:00:13]} Kg8 {[%emt 0:00:18]} 39. Rb7 {[%emt 0:00:06]} Bc3 {[%emt 0:00:07]} 40. Rdd7 {[%emt 0:00:00]} Rf6 {[%emt 0:00:00]} 41. f4 {[%emt 0:00:12]} h5 {[%emt 0:02:56]} 42. g4 {[%emt 0:00:55]} hxg4 {[%emt 0:05:28]} 43. hxg4 {[%emt 0:00:08]} g5 {[%emt 0:04:10]} 44. fxg5 {[%emt 0:00:18]} Re6 {[%emt 0:00:24]} 45. Kf3 {[%emt 0:00:23]} Kg7 {[%emt 0:00:27]} 46. Rxf7+ {[%emt 0:00:16]} Kg6 {[%emt 0:00:07]} 47. Rf8 {[%emt 0:01:25]} Kxg5 {[%emt 0:00:43]} 48. Rg8+ {[%emt 0:00:07]} Kf6 {[%emt 0:00:23]} 49. g5+ {[%emt 0:00:05]} Ke5 {[%emt 0:01:49]} 50. Rb5+ {[%emt 0:00:09]} Kd6 {[%emt 0:00:06]} 51. Rb6+ {[%emt 0:00:05]} Ke5 {[%emt 0:00:15]} 52. Rxe6+ {[%emt 0:00:05]} Kxe6 {[%emt 0:00:06]} 53. Rb8 {[%emt 0:00:07]} Kf5 {[%emt 0:01:41]} 54. Rb5+ {[%emt 0:00:07]} Kg6 {[%emt 0:00:13]} 55. Kg4 {[%emt 0:00:05]} Bd2 {[%emt 0:00:08]} 56. e4 {[%emt 0:00:07]} Bc3 {[%emt 0:00:06]} 57. Rb6+ {[%emt 0:00:05]} Kg7 {[%emt 0:00:05]} 58. Kf5 {[%emt 0:00:04]} 1-0

[Event "Mitropa Online Cup Open 2021"]
[Site "Hybrid"]
[Date "2021.05.04"]
[Round "6.3"]
[White "Bogner, Sebastian"]
[Black "Dragnev, Valentin"]
[Result "1-0"]
[ECO "B90"]
[WhiteElo "2577"]
[BlackElo "2559"]
[Annotator "ChessBase"]
[PlyCount "51"]
[EventDate "2021.05.04"]
[EventType "team-tourn"]
[EventCountry "NET"]
[SourceTitle "playchess.com"]
[Source "ChessBase"]
[SourceQuality "1"]
[WhiteTeam "Switzerland"]
[BlackTeam "Austria"]
[WhiteTeamCountry "SUI"]
[BlackTeamCountry "AUT"]
[TimeControl "40/5400+30:1800+30"]

1. e4 {[%emt 0:00:00]} c5 {[%emt 0:00:47]} 2. Nc3 {[%emt 0:00:15]} d6 {[%emt 0:00:08]} 3. Nge2 {[%emt 0:03:52]} Nf6 {[%emt 0:01:30]} 4. d4 {[%emt 0:01:24]} cxd4 {[%emt 0:00:08]} 5. Nxd4 {[%emt 0:00:01]} a6 {[%emt 0:00:07]} 6. h3 {[%emt 0:00:55]} e5 {[%emt 0:01:58]} 7. Nde2 {[%emt 0:01:01]} h5 {[%emt 0:00:12]} 8. Bg5 {[%emt 0:00:34]} Be6 {[%emt 0:01:33]} 9. Bxf6 {[%emt 0:00:18]} Qxf6 {[%emt 0:00:11]} 10. Nd5 {[%emt 0:00:04]} Qd8 {[%emt 0:00:10]} 11. Qd3 {[%emt 0:01:57]} Nd7 {[%emt 0:01:25]} 12. O-O-O {[%emt 0:03:01]} g6 {[%emt 0:00:16]} 13. Kb1 {[%emt 0:03:44]} Nc5 {[%emt 0:07:20]} 14. Qa3 {[%emt 0:07:27]} Bh6 {[%emt 0:01:47]} 15. Nec3 {[%emt 0:01:20]} O-O {[%emt 0:00:44]} 16. Be2 {[%emt 0:01:25]} b5 {[%emt 0:02:51]} 17. h4 {[%emt 0:19:15]} Rb8 {[%emt 0:09:44]} 18. f3 {[%emt 0:11:55]} Bd7 {[%emt 0:22:12]} 19. b4 {[%emt 0:01:47]} f5 {[%emt 0:12:04]} 20. bxc5 {[%emt 0:12:07]} b4 {[%emt 0:01:36]} 21. Nxb4 {[%emt 0:04:07]} dxc5 {[%emt 0:02:30]} 22. Qxa6 {[%emt 0:03:26]} Rxb4+ {[%emt 0:07:13]} 23. Ka1 {[%emt 0:00:03]} Rf6 {[%emt 0:04:06]} 24. Bc4+ {[%emt 0:05:00]} Rxc4 {[%emt 0:08:07]} 25. Qxc4+ {[%emt 0:00:12]} Rf7 {[%emt 0:00:07]} 26. Rd6 {[%emt 0:01:51]} 1-0

[Event "Mitropa Online Cup Open 2021"]
[Site "Hybrid"]
[Date "2021.05.04"]
[Round "6.3"]
[White "Blohberger, Felix"]
[Black "Kurmann, Oliver"]
[Result "1-0"]
[ECO "B22"]
[WhiteElo "2463"]
[BlackElo "2430"]
[Annotator "ChessBase"]
[PlyCount "101"]
[EventDate "2021.05.04"]
[EventType "team-tourn"]
[EventCountry "NET"]
[SourceTitle "playchess.com"]
[Source "ChessBase"]
[SourceQuality "1"]
[WhiteTeam "Austria"]
[BlackTeam "Switzerland"]
[WhiteTeamCountry "AUT"]
[BlackTeamCountry "SUI"]
[TimeControl "40/5400+30:1800+30"]

1. e4 {[%emt 0:00:00]} c5 {[%emt 0:00:09]} 2. c3 {[%emt 0:00:12]} Nf6 {[%emt 0:00:23]} 3. e5 {[%emt 0:00:10]} Nd5 {[%emt 0:00:03]} 4. Nf3 {[%emt 0:00:10]} e6 {[%emt 0:04:05]} 5. d4 {[%emt 0:00:36]} cxd4 {[%emt 0:00:28]} 6. cxd4 {[%emt 0:00:08]} d6 {[%emt 0:00:03]} 7. Bc4 {[%emt 0:00:30]} Be7 {[%emt 0:00:12]} 8. O-O {[%emt 0:00:49]} O-O {[%emt 0:00:03]} 9. Qe2 {[%emt 0:01:18]} b6 {[%emt 0:01:26]} 10. Bxd5 {[%emt 0:02:57]} exd5 {[%emt 0:00:03]} 11. Rd1 {[%emt 0:00:24]} Na6 {[%emt 0:08:32]} 12. Nc3 {[%emt 0:04:14]} Nc7 {[%emt 0:00:05]} 13. h3 {[%emt 0:03:40]} Bb7 {[%emt 0:00:25]} 14. Bf4 {[%emt 0:01:16]} Rc8 {[%emt 0:03:55]} 15. Rac1 {[%emt 0:01:48]} Qd7 {[%emt 0:00:06]} 16. Bg5 {[%emt 0:09:49]} Bxg5 {[%emt 0:16:42]} 17. Nxg5 {[%emt 0:00:09]} dxe5 {[%emt 0:00:10]} 18. dxe5 {[%emt 0:00:45]} Qf5 {[%emt 0:00:04]} 19. Nf3 {[%emt 0:02:30]} Rfe8 {[%emt 0:01:05]} 20. Qd3 {[%emt 0:09:00]} Qh5 {[%emt 0:04:05]} 21. Nb5 {[%emt 0:09:23]} Nxb5 {[%emt 0:21:37]} 22. Qxb5 {[%emt 0:04:13]} Qf5 {[%emt 0:00:23]} 23. Rc7 {[%emt 0:07:42]} Ba8 {[%emt 0:01:52]} 24. Qd7 {[%emt 0:09:13]} Qxd7 {[%emt 0:01:32]} 25. Rxd7 {[%emt 0:00:04]} a5 {[%emt 0:01:41]} 26. Rd6 {[%emt 0:03:23]} d4 {[%emt 0:02:19]} 27. Nxd4 {[%emt 0:11:43]} Rxe5 {[%emt 0:00:03]} 28. Rxb6 {[%emt 0:01:33]} g6 {[%emt 0:04:26]} 29. Rb5 {[%emt 0:01:07]} Rce8 {[%emt 0:13:38]} 30. Rxe5 {[%emt 0:01:08]} Rxe5 {[%emt 0:00:59]} 31. b3 {[%emt 0:04:49]} h5 {[%emt 0:00:36]} 32. h4 {[%emt 0:01:51]} Kg7 {[%emt 0:00:13]} 33. f3 {[%emt 0:00:35]} Rc5 {[%emt 0:07:47]} 34. Kf2 {[%emt 0:00:34]} Kf6 {[%emt 0:00:05]} 35. Ke3 {[%emt 0:01:28]} Bb7 {[%emt 0:02:35]} 36. Ne2 {[%emt 0:04:18]} Re5+ {[%emt 0:02:15]} 37. Kf2 {[%emt 0:00:10]} Ke7 {[%emt 0:00:27]} 38. a3 {[%emt 0:02:43]} Rb5 {[%emt 0:01:28]} 39. Rb1 {[%emt 0:00:58]} Kd6 {[%emt 0:00:31]} 40. b4 {[%emt 0:00:00]} axb4 {[%emt 0:00:00]} 41. Rxb4 {[%emt 0:04:01]} Rxb4 {[%emt 0:13:14]} 42. axb4 {[%emt 0:00:09]} Bc8 {[%emt 0:00:13]} 43. Ke3 {[%emt 0:01:19]} Ke5 {[%emt 0:01:32]} 44. Nc3 {[%emt 0:03:21]} f6 {[%emt 0:00:08]} 45. b5 {[%emt 0:03:04]} g5 {[%emt 0:00:06]} 46. g3 {[%emt 0:02:27]} Bb7 {[%emt 0:02:10]} 47. Ne4 {[%emt 0:05:59]} gxh4 {[%emt 0:00:29]} 48. gxh4 {[%emt 0:00:08]} Bd5 {[%emt 0:02:45]} 49. b6 {[%emt 0:00:59]} f5 {[%emt 0:00:24]} 50. f4+ {[%emt 0:00:08]} Ke6 {[%emt 0:00:01]} 51. b7 {[%emt 0:00:19]} 1-0

[Event "Mitropa Online Cup Open 2021"]
[Site "Hybrid"]
[Date "2021.05.04"]
[Round "6.3"]
[White "Baenziger, Fabian"]
[Black "Schwabeneder, Florian"]
[Result "1/2-1/2"]
[ECO "D61"]
[WhiteElo "2400"]
[BlackElo "2443"]
[Annotator "NA"]
[PlyCount "65"]
[EventDate "2021.05.04"]
[EventType "team-tourn"]
[EventCountry "NET"]
[SourceTitle "playchess.com"]
[Source "ChessBase"]
[SourceQuality "1"]
[WhiteTeam "Switzerland"]
[BlackTeam "Austria"]
[WhiteTeamCountry "SUI"]
[BlackTeamCountry "AUT"]
[TimeControl "40/5400+30:1800+30"]

1. d4 {[%emt 0:00:00]} Nf6 {[%emt 0:00:21]} 2. c4 {[%emt 0:00:06]} e6 {[%emt 0:00:09]} 3. Nc3 {[%emt 0:00:11]} d5 {[%emt 0:00:11]} 4. Bg5 {[%emt 0:01:16]} Be7 {[%emt 0:00:32]} 5. e3 {[%emt 0:00:14]} Nbd7 {[%emt 0:00:40]} 6. Nf3 {[%emt 0:00:34]} O-O {[%emt 0:00:22]} 7. Qc2 {[%emt 0:00:38]} a6 {[%emt 0:06:05]} 8. cxd5 {[%emt 0:00:19]} exd5 {[%emt 0:00:53]} 9. Bd3 {[%emt 0:03:49]} Re8 {[%emt 0:00:49]} 10. O-O {[%emt 0:01:34]} Nf8 {[%emt 0:03:48]} 11. h3 {[%emt 0:16:09]} c6 {[%emt 0:00:17]} 12. Bf4 {[%emt 0:12:14]} Ng6 {[%emt 0:02:13]} 13. Bh2 {[%emt 0:00:15]} Bd6 {[%emt 0:00:05]} 14. Bxd6 {[%emt 0:01:30]} Qxd6 {[%emt 0:00:05]} 15. Na4 {[%emt 0:00:06]} Ne4 {[%emt 0:11:12]} 16. Nb6 {[%emt 0:15:10]} Rb8 {[%emt 0:01:24]} 17. Nxc8 {[%emt 0:09:10]} Rbxc8 {[%emt 0:00:14]} 18. Nd2 {[%emt 0:00:04]} f5 {[%emt 0:17:07]} 19. Nf3 {[%emt 0:02:21]} Rc7 {[%emt 0:09:06]} 20. g3 {[%emt 0:05:02]} Nh8 {[%emt 0:04:51]} 21. Kg2 {[%emt 0:06:53]} Nf7 {[%emt 0:01:33]} 22. h4 {[%emt 0:01:56]} g6 {[%emt 0:02:24]} 23. Rac1 {[%emt 0:01:48]} Re6 {[%emt 0:09:04]} 24. Rh1 {[%emt 0:02:09]} Rce7 {[%emt 0:00:10]} 25. a3 {[%emt 0:02:05]} h6 {[%emt 0:17:33]} 26. Rce1 {[%emt 0:01:31]} Rf6 {[%emt 0:03:09]} 27. Re2 {[%emt 0:01:19]} Ree6 {[%emt 0:00:25]} 28. Ree1 {[%emt 0:00:38]} g5 {[%emt 0:02:48]} 29. hxg5 {[%emt 0:00:06]} hxg5 {[%emt 0:00:03]} 30. Rh5 {[%emt 0:00:31]} Rh6 {[%emt 0:00:17]} 31. Reh1 {[%emt 0:00:42]} g4 {[%emt 0:03:19]} 32. Bxe4 {[%emt 0:01:30]} fxe4 {[%emt 0:00:44]} 33. Ng5 {[%emt 0:00:08]} 1/2-1/2

[Event "Mitropa Online Cup Open 2021"]
[Site "Hybrid"]
[Date "2021.05.04"]
[Round "6.3"]
[White "Morgunov, Marc"]
[Black "Fecker, Noah"]
[Result "1/2-1/2"]
[ECO "B11"]
[WhiteElo "2385"]
[BlackElo "2308"]
[Annotator "NA"]
[PlyCount "60"]
[EventDate "2021.05.04"]
[EventType "team-tourn"]
[EventCountry "NET"]
[SourceTitle "playchess.com"]
[Source "ChessBase"]
[SourceQuality "1"]
[WhiteTeam "Austria"]
[BlackTeam "Switzerland"]
[WhiteTeamCountry "AUT"]
[BlackTeamCountry "SUI"]
[TimeControl "40/5400+30:1800+30"]

1. e4 {[%emt 0:00:00]} c6 {[%emt 0:00:06]} 2. Nc3 {[%emt 0:00:19]} d5 {[%emt 0:00:04]} 3. Nf3 {[%emt 0:00:37]} dxe4 {[%emt 0:00:08]} 4. Nxe4 {[%emt 0:00:08]} Nf6 {[%emt 0:00:03]} 5. Qe2 {[%emt 0:00:11]} Nxe4 {[%emt 0:00:26]} 6. Qxe4 {[%emt 0:00:10]} Nd7 {[%emt 0:00:01]} 7. Bc4 {[%emt 0:00:21]} Nf6 {[%emt 0:00:05]} 8. Ne5 {[%emt 0:00:13]} e6 {[%emt 0:00:21]} 9. Qe2 {[%emt 0:00:07]} b5 {[%emt 0:00:29]} 10. Bd3 {[%emt 0:00:13]} Qc7 {[%emt 0:00:26]} 11. b3 {[%emt 0:03:37]} Bd6 {[%emt 0:17:11]} 12. Bb2 {[%emt 0:01:14]} Nd5 {[%emt 0:02:08]} 13. O-O {[%emt 0:15:13]} Nf4 {[%emt 0:00:59]} 14. Qe3 {[%emt 0:00:24]} Nxd3 {[%emt 0:00:46]} 15. Nxd3 {[%emt 0:00:24]} O-O {[%emt 0:08:29]} 16. Be5 {[%emt 0:12:29]} Rd8 {[%emt 0:07:03]} 17. Rfe1 {[%emt 0:09:26]} a5 {[%emt 0:14:09]} 18. a3 {[%emt 0:11:02]} Bxe5 {[%emt 0:13:10]} 19. Qxe5 {[%emt 0:02:22]} Qxe5 {[%emt 0:02:14]} 20. Rxe5 {[%emt 0:10:27]} f6 {[%emt 0:01:20]} 21. Rc5 {[%emt 0:00:21]} e5 {[%emt 0:01:23]} 22. Rxc6 {[%emt 0:04:14]} Bf5 {[%emt 0:00:33]} 23. Rb6 {[%emt 0:02:59]} Bxd3 {[%emt 0:05:41]} 24. cxd3 {[%emt 0:00:13]} Rac8 {[%emt 0:03:09]} 25. Rxb5 {[%emt 0:05:01]} Rxd3 {[%emt 0:00:25]} 26. Rxa5 {[%emt 0:01:24]} Rc2 {[%emt 0:03:05]} 27. b4 {[%emt 0:04:49]} Rdxd2 {[%emt 0:00:57]} 28. Rc5 {[%emt 0:00:24]} Rb2 {[%emt 0:06:01]} 29. Rf1 {[%emt 0:00:11]} Rd3 {[%emt 0:00:54]} 30. a4 {[%emt 0:05:17]} Rxb4 {[%emt 0:01:06]} 1/2-1/2

[Event "Mitropa Online Cup Open 2021"]
[Site "Hybrid"]
[Date "2021.05.04"]
[Round "6.4"]
[White "Sochacki, Christophe"]
[Black "Kovacevic, Blazimir"]
[Result "1-0"]
[ECO "C10"]
[WhiteElo "2477"]
[BlackElo "2410"]
[Annotator "ChessBase"]
[PlyCount "159"]
[EventDate "2021.05.04"]
[EventType "team-tourn"]
[EventCountry "NET"]
[SourceTitle "playchess.com"]
[Source "ChessBase"]
[SourceQuality "1"]
[WhiteTeam "France"]
[BlackTeam "Croatia"]
[WhiteTeamCountry "FRA"]
[BlackTeamCountry "CRO"]
[TimeControl "40/5400+30:1800+30"]

1. e4 {[%emt 0:00:00]} e6 {[%emt 0:00:06]} 2. d4 {[%emt 0:00:08]} d5 {[%emt 0:00:03]} 3. Nc3 {[%emt 0:00:05]} Be7 {[%emt 0:00:12]} 4. Bd3 {[%emt 0:01:10]} Nc6 {[%emt 0:00:23]} 5. Nf3 {[%emt 0:00:44]} Nb4 {[%emt 0:00:05]} 6. Bb5+ {[%emt 0:01:51]} c6 {[%emt 0:00:32]} 7. Be2 {[%emt 0:00:07]} Nf6 {[%emt 0:00:03]} 8. e5 {[%emt 0:00:20]} Ne4 {[%emt 0:00:22]} 9. O-O {[%emt 0:08:44]} c5 {[%emt 0:01:39]} 10. Be3 {[%emt 0:03:39]} Nc6 {[%emt 0:05:07]} 11. dxc5 {[%emt 0:00:58]} Nxc5 {[%emt 0:00:45]} 12. Nb5 {[%emt 0:07:16]} O-O {[%emt 0:04:33]} 13. c4 {[%emt 0:03:34]} a6 {[%emt 0:02:36]} 14. cxd5 {[%emt 0:15:12]} exd5 {[%emt 0:01:02]} 15. Nbd4 {[%emt 0:00:31]} Bg4 {[%emt 0:25:59]} 16. Rc1 {[%emt 0:14:45]} Ne6 {[%emt 0:08:48]} 17. Nxc6 {[%emt 0:08:29]} bxc6 {[%emt 0:00:06]} 18. Qa4 {[%emt 0:01:42]} Bxf3 {[%emt 0:33:57]} 19. Bxf3 {[%emt 0:00:06]} Bg5 {[%emt 0:00:03]} 20. Qxc6 {[%emt 0:14:22]} Bxe3 {[%emt 0:00:06]} 21. fxe3 {[%emt 0:00:04]} Qb8 {[%emt 0:05:38]} 22. Qc3 {[%emt 0:05:01]} Rd8 {[%emt 0:00:30]} 23. Rfd1 {[%emt 0:00:06]} Qb5 {[%emt 0:00:20]} 24. Qb3 {[%emt 0:01:03]} Qxb3 {[%emt 0:04:53]} 25. axb3 {[%emt 0:00:05]} Rac8 {[%emt 0:02:04]} 26. Rxc8 {[%emt 0:00:59]} Rxc8 {[%emt 0:00:04]} 27. Bxd5 {[%emt 0:00:44]} Rc5 {[%emt 0:02:53]} 28. h4 {[%emt 0:04:17]} Kf8 {[%emt 0:00:12]} 29. Kf2 {[%emt 0:02:06]} Rc2+ {[%emt 0:00:31]} 30. Kf3 {[%emt 0:00:22]} Rxb2 {[%emt 0:00:05]} 31. Rc1 {[%emt 0:02:55]} Rd2 {[%emt 0:01:14]} 32. Rc8+ {[%emt 0:00:52]} Ke7 {[%emt 0:00:03]} 33. Bc4 {[%emt 0:00:06]} Ra2 {[%emt 0:00:45]} 34. Ra8 {[%emt 0:00:18]} Ra5 {[%emt 0:00:34]} 35. Ra7+ {[%emt 0:00:44]} Kf8 {[%emt 0:00:10]} 36. Rxa6 {[%emt 0:01:54]} Rxe5 {[%emt 0:00:03]} 37. Ra7 {[%emt 0:00:33]} Rc5 {[%emt 0:00:55]} 38. Ke4 {[%emt 0:00:21]} h5 {[%emt 0:00:29]} 39. Kd3 {[%emt 0:00:20]} g5 {[%emt 0:01:01]} 40. g3 {[%emt 0:00:00]} gxh4 {[%emt 0:00:00]} 41. gxh4 {[%emt 0:00:27]} Rf5 {[%emt 0:09:45]} 42. b4 {[%emt 0:00:43]} Rf1 {[%emt 0:01:45]} 43. Bxe6 {[%emt 0:04:01]} fxe6 {[%emt 0:00:06]} 44. b5 {[%emt 0:00:22]} Rb1 {[%emt 0:00:19]} 45. Kc4 {[%emt 0:00:35]} Ke8 {[%emt 0:00:57]} 46. Rh7 {[%emt 0:03:13]} Kd8 {[%emt 0:03:27]} 47. Kc5 {[%emt 0:01:30]} Re1 {[%emt 0:01:24]} 48. b6 {[%emt 0:04:43]} Kc8 {[%emt 0:00:10]} 49. Kd4 {[%emt 0:11:47]} Rb1 {[%emt 0:01:42]} 50. b7+ {[%emt 0:01:57]} Kb8 {[%emt 0:00:08]} 51. Ke5 {[%emt 0:00:48]} Rb4 {[%emt 0:06:36]} 52. e4 {[%emt 0:00:19]} Ka7 {[%emt 0:00:02]} 53. Re7 {[%emt 0:01:18]} Kb8 {[%emt 0:03:10]} 54. Rd7 {[%emt 0:01:29]} Ka7 {[%emt 0:02:08]} 55. Rd4 {[%emt 0:02:06]} Rb6 {[%emt 0:00:52]} 56. Rd6 {[%emt 0:00:19]} Rb4 {[%emt 0:00:55]} 57. Rxe6 {[%emt 0:00:14]} Kxb7 {[%emt 0:00:05]} 58. Rd6 {[%emt 0:00:50]} Kc7 {[%emt 0:01:33]} 59. Rd4 {[%emt 0:01:28]} Rb8 {[%emt 0:01:22]} 60. Kf6 {[%emt 0:00:19]} Rf8+ {[%emt 0:01:27]} 61. Kg5 {[%emt 0:00:13]} Kc6 {[%emt 0:00:58]} 62. Kxh5 {[%emt 0:02:18]} Rg8 {[%emt 0:01:00]} 63. Kh6 {[%emt 0:01:15]} Rg4 {[%emt 0:00:09]} 64. h5 {[%emt 0:01:19]} Kc5 {[%emt 0:00:08]} 65. Rd5+ {[%emt 0:00:09]} Kc6 {[%emt 0:00:03]} 66. Rd4 {[%emt 0:00:36]} Kc5 {[%emt 0:00:02]} 67. Ra4 {[%emt 0:01:54]} Kc6 {[%emt 0:01:20]} 68. Kh7 {[%emt 0:00:10]} Kd7 {[%emt 0:00:06]} 69. h6 {[%emt 0:00:28]} Ke7 {[%emt 0:00:36]} 70. Kh8 {[%emt 0:00:20]} Kf7 {[%emt 0:00:37]} 71. Ra7+ {[%emt 0:00:50]} Kf8 {[%emt 0:01:05]} 72. e5 {[%emt 0:00:08]} Re4 {[%emt 0:00:54]} 73. Ra5 {[%emt 0:00:25]} Re1 {[%emt 0:00:43]} 74. Kh7 {[%emt 0:00:13]} Rg1 {[%emt 0:01:47]} 75. Ra7 {[%emt 0:01:15]} Rg2 {[%emt 0:00:39]} 76. e6 {[%emt 0:00:50]} Re2 {[%emt 0:00:32]} 77. Rf7+ {[%emt 0:00:09]} Ke8 {[%emt 0:00:03]} 78. Kg8 {[%emt 0:00:26]} Rxe6 {[%emt 0:00:24]} 79. h7 {[%emt 0:00:04]} Rh6 {[%emt 0:00:43]} 80. Rg7 {[%emt 0:00:03]} 1-0

[Event "Mitropa Online Cup Open 2021"]
[Site "Hybrid"]
[Date "2021.05.04"]
[Round "6.5"]
[White "Lodici, Lorenzo"]
[Black "Spalir, Jernej"]
[Result "1/2-1/2"]
[ECO "E04"]
[WhiteElo "2483"]
[BlackElo "2389"]
[Annotator "ChessBase"]
[PlyCount "61"]
[EventDate "2021.05.04"]
[EventType "team-tourn"]
[EventCountry "NET"]
[SourceTitle "playchess.com"]
[Source "ChessBase"]
[SourceQuality "1"]
[WhiteTeam "Italy"]
[BlackTeam "Slovenia"]
[WhiteTeamCountry "ITA"]
[BlackTeamCountry "SLO"]
[TimeControl "40/5400+30:1800+30"]

1. d4 {[%emt 0:00:00]} Nf6 {[%emt 0:00:06]} 2. c4 {[%emt 0:00:08]} e6 {[%emt 0:00:05]} 3. g3 {[%emt 0:00:23]} d5 {[%emt 0:00:12]} 4. Nf3 {[%emt 0:00:04]} dxc4 {[%emt 0:00:05]} 5. Bg2 {[%emt 0:00:06]} a6 {[%emt 0:00:15]} 6. O-O {[%emt 0:00:09]} Nc6 {[%emt 0:00:06]} 7. e3 {[%emt 0:00:05]} Bd7 {[%emt 0:00:04]} 8. Qe2 {[%emt 0:00:07]} Bd6 {[%emt 0:01:26]} 9. Qxc4 {[%emt 0:00:07]} O-O {[%emt 0:00:07]} 10. Nbd2 {[%emt 0:00:03]} Qe7 {[%emt 0:03:15]} 11. Qc2 {[%emt 0:04:04]} Rab8 {[%emt 0:05:17]} 12. Nc4 {[%emt 0:02:10]} b5 {[%emt 0:06:06]} 13. Nce5 {[%emt 0:01:08]} Nb4 {[%emt 0:06:59]} 14. Qb3 {[%emt 0:01:20]} c5 {[%emt 0:00:24]} 15. dxc5 {[%emt 0:00:24]} Bxc5 {[%emt 0:00:05]} 16. Bd2 {[%emt 0:00:18]} Rfc8 {[%emt 0:04:23]} 17. Bxb4 {[%emt 0:02:53]} Bxb4 {[%emt 0:00:19]} 18. Nd4 {[%emt 0:00:03]} Rb6 {[%emt 0:01:52]} 19. Nxd7 {[%emt 0:06:02]} Nxd7 {[%emt 0:00:21]} 20. Rac1 {[%emt 0:00:20]} Rxc1 {[%emt 0:05:59]} 21. Rxc1 {[%emt 0:00:06]} Bc5 {[%emt 0:00:07]} 22. Nc6 {[%emt 0:04:44]} Qe8 {[%emt 0:04:40]} 23. a4 {[%emt 0:07:55]} bxa4 {[%emt 0:12:30]} 24. Qxa4 {[%emt 0:00:03]} Bf8 {[%emt 0:00:05]} 25. Ne5 {[%emt 0:03:24]} Rb5 {[%emt 0:00:46]} 26. Bc6 {[%emt 0:11:51]} Rxe5 {[%emt 0:00:15]} 27. Bxd7 {[%emt 0:00:18]} Qb8 {[%emt 0:01:08]} 28. b3 {[%emt 0:09:31]} Rc5 {[%emt 0:03:08]} 29. Rd1 {[%emt 0:01:06]} Qb7 {[%emt 0:02:03]} 30. Ra1 {[%emt 0:07:05]} Rc2 {[%emt 0:02:29]} 31. Be8 {[%emt 0:01:29]} 1/2-1/2

[Event "Mitropa Online Cup Open 2021"]
[Site "Hybrid"]
[Date "2021.05.04"]
[Round "6.5"]
[White "Markoja, Boris"]
[Black "Moroni, Luca Jr"]
[Result "0-1"]
[ECO "A50"]
[WhiteElo "2442"]
[BlackElo "2557"]
[Annotator "ChessBase"]
[PlyCount "72"]
[EventDate "2021.05.04"]
[EventType "team-tourn"]
[EventCountry "NET"]
[SourceTitle "playchess.com"]
[Source "ChessBase"]
[SourceQuality "1"]
[WhiteTeam "Slovenia"]
[BlackTeam "Italy"]
[WhiteTeamCountry "SLO"]
[BlackTeamCountry "ITA"]
[TimeControl "40/5400+30:1800+30"]

1. d4 {[%emt 0:00:00]} Nf6 {[%emt 0:00:04]} 2. c4 {[%emt 0:00:07]} b6 {[%emt 0:00:02]} 3. f3 {[%emt 0:05:01]} Nc6 {[%emt 0:03:26]} 4. Nc3 {[%emt 0:05:52]} e5 {[%emt 0:01:33]} 5. d5 {[%emt 0:01:02]} Ne7 {[%emt 0:01:09]} 6. e4 {[%emt 0:00:57]} Ng6 {[%emt 0:00:10]} 7. Be3 {[%emt 0:01:25]} Bc5 {[%emt 0:02:36]} 8. Qd2 {[%emt 0:03:15]} Bxe3 {[%emt 0:03:44]} 9. Qxe3 {[%emt 0:00:29]} c6 {[%emt 0:02:43]} 10. g3 {[%emt 0:05:07]} O-O {[%emt 0:04:07]} 11. Bd3 {[%emt 0:03:31]} b5 {[%emt 0:11:53]} 12. dxc6 {[%emt 0:21:24]} b4 {[%emt 0:08:36]} 13. Na4 {[%emt 0:09:22]} dxc6 {[%emt 0:01:34]} 14. Ne2 {[%emt 0:00:25]} Qa5 {[%emt 0:04:07]} 15. b3 {[%emt 0:00:49]} Rd8 {[%emt 0:02:15]} 16. O-O-O {[%emt 0:02:40]} Nf8 {[%emt 0:03:26]} 17. c5 {[%emt 0:03:45]} Ne6 {[%emt 0:07:24]} 18. Kb1 {[%emt 0:05:17]} Ba6 {[%emt 0:02:56]} 19. Bxa6 {[%emt 0:03:49]} Qxa6 {[%emt 0:00:35]} 20. Nb2 {[%emt 0:01:41]} Qb5 {[%emt 0:07:45]} 21. Nd3 {[%emt 0:01:33]} Nd7 {[%emt 0:04:11]} 22. Rc1 {[%emt 0:00:38]} a5 {[%emt 0:00:34]} 23. Rc4 {[%emt 0:00:56]} Qa6 {[%emt 0:00:18]} 24. f4 {[%emt 0:06:02]} a4 {[%emt 0:01:08]} 25. Nxb4 {[%emt 0:01:32]} Qb7 {[%emt 0:00:20]} 26. Nd3 {[%emt 0:04:10]} axb3 {[%emt 0:00:54]} 27. a4 {[%emt 0:00:07]} b2 {[%emt 0:03:00]} 28. Rb4 {[%emt 0:03:32]} Qa6 {[%emt 0:02:55]} 29. Nc3 {[%emt 0:02:08]} Qa5 {[%emt 0:02:07]} 30. Rc4 {[%emt 0:00:32]} Rdb8 {[%emt 0:01:34]} 31. f5 {[%emt 0:02:20]} Nd4 {[%emt 0:01:29]} 32. Nxe5 {[%emt 0:01:37]} Nb5 {[%emt 0:06:45]} 33. Nxd7 {[%emt 0:03:37]} Na3+ {[%emt 0:00:07]} 34. Ka2 {[%emt 0:00:05]} Nxc4 {[%emt 0:00:13]} 35. Qd4 {[%emt 0:00:37]} b1=Q+ {[%emt 0:00:19]} 36. Rxb1 {[%emt 0:00:21]} Qxa4+ {[%emt 0:00:04]} 0-1